[Event "32nd GER-ch Seniors-50 2020"]
[Site "Magdeburg"]
[Date "2020.08.19"]
[Round "6.1"]
[White "Biebinger, Gerhard"]
[Black "Lundin, Jan"]
[Result "1/2-1/2"]
[ECO "D02"]
[WhiteElo "2226"]
[BlackElo "2321"]
[Annotator "ChessBase"]
[PlyCount "96"]
[EventDate "2020.08.14"]
[EventType "swiss"]
[EventCountry "GER"]
[SourceTitle "playchess.com"]
[Source "ChessBase"]
[SourceQuality "1"]
[TimeControl "40/5400+30:1800+30"]

1. d4 {[%emt 0:00:00]} d5 {[%emt 0:00:00]} 2. Nf3 {[%emt 0:00:00]} e6 {[%emt 0:00:00]} 3. c4 {[%emt 0:00:00]} c5 {[%emt 0:00:10]} 4. cxd5 {[%emt 0:00:00]} exd5 {[%emt 0:00:06]} 5. g3 {[%emt 0:00:04]} Nc6 {[%emt 0:00:21]} 6. Bg2 {[%emt 0:00:06]} c4 {[%emt 0:00:24]} 7. O-O {[%emt 0:01:30]} Bb4 {[%emt 0:00:13]} 8. Nc3 {[%emt 0:01:56]} Nge7 {[%emt 0:00:18]} 9. e4 {[%emt 0:00:44]} Bxc3 {[%emt 0:01:07]} 10. bxc3 {[%emt 0:00:02]} O-O {[%emt 0:00:20]} 11. Re1 {[%emt 0:18:23]} Qa5 {[%emt 0:07:53]} 12. exd5 {[%emt 0:12:16]} Nxd5 {[%emt 0:00:52]} 13. Bd2 {[%emt 0:00:10]} f6 {[%emt 0:17:08]} 14. Qb1 {[%emt 0:09:07]} Nb6 {[%emt 0:05:45]} 15. a4 {[%emt 0:14:07]} Bf5 {[%emt 0:09:18]} 16. Qb5 {[%emt 0:00:55]} a6 {[%emt 0:00:26]} 17. Qc5 {[%emt 0:03:27]} Bd3 {[%emt 0:23:15]} 18. Re6 {[%emt 0:04:08]} Qxc5 {[%emt 0:03:27]} 19. dxc5 {[%emt 0:00:03]} Nd7 {[%emt 0:00:28]} 20. Be3 {[%emt 0:00:39]} Rac8 {[%emt 0:05:00]} 21. Rd6 {[%emt 0:02:30]} Ncb8 {[%emt 0:05:26]} 22. Ne1 {[%emt 0:06:25]} Nxc5 {[%emt 0:00:48]} 23. Nxd3 {[%emt 0:01:34]} cxd3 {[%emt 0:00:25]} 24. Rb1 {[%emt 0:00:32]} Nbd7 {[%emt 0:01:07]} 25. Bxb7 {[%emt 0:00:52]} Rb8 {[%emt 0:01:55]} 26. Bd5+ {[%emt 0:00:49]} Kh8 {[%emt 0:00:04]} 27. Rxb8 {[%emt 0:00:58]} Rxb8 {[%emt 0:00:06]} 28. Bc6 {[%emt 0:01:48]} Ne5 {[%emt 0:03:05]} 29. Bxc5 {[%emt 0:02:09]} Nxc6 {[%emt 0:01:58]} 30. Rxd3 {[%emt 0:00:04]} Rc8 {[%emt 0:00:39]} 31. f4 {[%emt 0:02:33]} Kg8 {[%emt 0:00:51]} 32. Bb6 {[%emt 0:02:12]} g5 {[%emt 0:02:33]} 33. fxg5 {[%emt 0:03:04]} fxg5 {[%emt 0:01:28]} 34. Rd5 {[%emt 0:01:19]} h6 {[%emt 0:00:47]} 35. Kf2 {[%emt 0:01:23]} Kf7 {[%emt 0:01:50]} 36. Rd6 {[%emt 0:02:55]} h5 {[%emt 0:00:40]} 37. Ke2 {[%emt 0:01:35]} Re8+ {[%emt 0:02:49]} 38. Kd1 {[%emt 0:03:42]} Ne5 {[%emt 0:01:26]} 39. a5 {[%emt 0:01:54]} Nf3 {[%emt 0:01:04]} 40. h3 {[%emt 0:01:02]} Re1+ {[%emt 0:01:40]} 41. Kc2 {[%emt 0:31:30]} Rh1 {[%emt 0:04:59]} 42. Bc7 {[%emt 0:00:00]} Ke7 {[%emt 0:03:09]} 43. Rxa6 {[%emt 0:00:00]} Kd7 {[%emt 0:00:43]} 44. Bb8 {[%emt 0:00:00]} Kc8 {[%emt 0:02:12]} 45. Rb6 {[%emt 0:00:00]} Rxh3 {[%emt 0:08:57]} 46. a6 {[%emt 0:00:00]} Rh2+ {[%emt 0:00:16]} 47. Kd3 {[%emt 0:00:00]} Ra2 {[%emt 0:00:53]} 48. a7 {[%emt 0:00:00]} h4 {[%emt 0:02:09]} 1/2-1/2

[Event "32nd GER-ch Seniors-50 2020"]
[Site "Magdeburg"]
[Date "2020.08.19"]
[Round "6.3"]
[White "Metz, Hartmut"]
[Black "Koehler, Gerhard"]
[Result "0-1"]
[ECO "B15"]
[WhiteElo "2209"]
[BlackElo "2213"]
[Annotator "ChessBase"]
[PlyCount "87"]
[EventDate "2020.08.14"]
[EventType "swiss"]
[EventCountry "GER"]
[SourceTitle "playchess.com"]
[Source "ChessBase"]
[SourceQuality "1"]
[TimeControl "40/5400+30:1800+30"]

1. e4 {[%emt 0:00:00]} c6 {[%emt 0:00:00]} 2. d4 {[%emt 0:00:12]} d5 {[%emt 0:00:00]} 3. Nc3 {[%emt 0:01:00]} dxe4 {[%emt 0:00:06]} 4. Nxe4 {[%emt 0:00:02]} Nf6 {[%emt 0:00:18]} 5. Ng3 {[%emt 0:03:13]} g6 {[%emt 0:01:14]} 6. c3 {[%emt 0:01:44]} Bg7 {[%emt 0:01:25]} 7. Nf3 {[%emt 0:00:06]} O-O {[%emt 0:01:38]} 8. Bc4 {[%emt 0:03:16]} Nbd7 {[%emt 0:06:10]} 9. O-O {[%emt 0:00:17]} b5 {[%emt 0:04:21]} 10. Bd3 {[%emt 0:03:36]} a6 {[%emt 0:01:27]} 11. a4 {[%emt 0:01:36]} Bb7 {[%emt 0:00:16]} 12. Re1 {[%emt 0:01:33]} Re8 {[%emt 0:01:54]} 13. Qe2 {[%emt 0:09:44]} Qc7 {[%emt 0:05:21]} 14. Bd2 {[%emt 0:15:21]} Nb6 {[%emt 0:03:03]} 15. a5 {[%emt 0:01:33]} Nbd7 {[%emt 0:01:56]} 16. b4 {[%emt 0:03:15]} Nd5 {[%emt 0:01:47]} 17. Ne5 {[%emt 0:03:37]} Nxe5 {[%emt 0:01:28]} 18. dxe5 {[%emt 0:00:01]} c5 {[%emt 0:00:53]} 19. Rac1 {[%emt 0:00:12]} c4 {[%emt 0:00:55]} 20. Bb1 {[%emt 0:04:28]} Rad8 {[%emt 0:04:21]} 21. f4 {[%emt 0:00:26]} f5 {[%emt 0:08:41]} 22. Nf1 {[%emt 0:22:57]} e6 {[%emt 0:05:48]} 23. Qf2 {[%emt 0:00:44]} Bf8 {[%emt 0:02:08]} 24. Re2 {[%emt 0:02:13]} Rd7 {[%emt 0:01:40]} 25. Ne3 {[%emt 0:00:53]} Rg7 {[%emt 0:10:11]} 26. Nxd5 {[%emt 0:01:28]} Bxd5 {[%emt 0:00:09]} 27. Be3 {[%emt 0:04:15]} h6 {[%emt 0:06:15]} 28. Rd1 {[%emt 0:03:43]} Qc6 {[%emt 0:04:56]} 29. h4 {[%emt 0:04:07]} Be7 {[%emt 0:01:19]} 30. Rd4 {[%emt 0:02:48]} Rf8 {[%emt 0:02:17]} 31. Kf1 {[%emt 0:00:29]} g5 {[%emt 0:03:23]} 32. hxg5 {[%emt 0:00:19]} hxg5 {[%emt 0:00:02]} 33. fxg5 {[%emt 0:00:34]} Bxg5 {[%emt 0:00:19]} 34. Bxg5 {[%emt 0:00:15]} Rxg5 {[%emt 0:00:13]} 35. Rh4 {[%emt 0:05:21]} Rf7 {[%emt 0:12:03]} 36. g3 {[%emt 0:00:16]} Rfg7 {[%emt 0:01:27]} 37. Re3 {[%emt 0:00:01]} Qe8 {[%emt 0:02:21]} 38. Qh2 {[%emt 0:00:41]} Kf7 {[%emt 0:02:04]} 39. Rh8 {[%emt 0:00:56]} Qe7 {[%emt 0:01:24]} 40. Rh6 {[%emt 0:00:17]} Ke8 {[%emt 0:01:46]} 41. Rh8+ {[%emt 0:08:59]} Rg8 {[%emt 0:05:58]} 42. Bc2 {[%emt 0:09:43]} Qf8 {[%emt 0:09:40]} 43. Rh4 {[%emt 0:03:23]} Rg4 {[%emt 0:03:32]} 44. Bd1 {[%emt 0:03:53]} 0-1

[Event "32nd GER-ch Seniors-50 2020"]
[Site "Magdeburg"]
[Date "2020.08.19"]
[Round "6.5"]
[White "Vatter, Hans-Joachim"]
[Black "Stahr, Ralf-Peter"]
[Result "1-0"]
[ECO "B30"]
[WhiteElo "2204"]
[BlackElo "2137"]
[Annotator "ChessBase"]
[PlyCount "107"]
[EventDate "2020.08.14"]
[EventType "swiss"]
[EventCountry "GER"]
[SourceTitle "playchess.com"]
[Source "ChessBase"]
[SourceQuality "1"]
[TimeControl "40/5400+30:1800+30"]

1. e4 {[%emt 0:00:00]} c5 {[%emt 0:00:11]} 2. Nf3 {[%emt 0:00:00]} Nc6 {[%emt 0:00:09]} 3. Bb5 {[%emt 0:00:15]} e6 {[%emt 0:00:25]} 4. Bxc6 {[%emt 0:00:12]} bxc6 {[%emt 0:00:10]} 5. d3 {[%emt 0:00:12]} Ne7 {[%emt 0:00:11]} 6. O-O {[%emt 0:00:10]} Ng6 {[%emt 0:00:23]} 7. Ng5 {[%emt 0:01:05]} f6 {[%emt 0:03:37]} 8. Nh3 {[%emt 0:01:02]} d5 {[%emt 0:00:53]} 9. f4 {[%emt 0:05:16]} dxe4 {[%emt 0:03:30]} 10. dxe4 {[%emt 0:01:07]} Qd4+ {[%emt 0:00:22]} 11. Nf2 {[%emt 0:01:13]} Ba6 {[%emt 0:01:21]} 12. c3 {[%emt 0:00:48]} Qd6 {[%emt 0:01:47]} 13. e5 {[%emt 0:03:29]} Qd5 {[%emt 0:09:37]} 14. Re1 {[%emt 0:03:47]} Kf7 {[%emt 0:02:31]} 15. Qh5 {[%emt 0:05:30]} Bd3 {[%emt 0:05:14]} 16. Nxd3 {[%emt 0:04:20]} Qxd3 {[%emt 0:00:08]} 17. Nd2 {[%emt 0:04:25]} Be7 {[%emt 0:08:09]} 18. Ne4 {[%emt 0:08:50]} f5 {[%emt 0:00:25]} 19. Nf2 {[%emt 0:00:48]} Qc4 {[%emt 0:06:10]} 20. Qe2 {[%emt 0:09:04]} Qxe2 {[%emt 0:09:53]} 21. Rxe2 {[%emt 0:00:12]} c4 {[%emt 0:01:34]} 22. Be3 {[%emt 0:00:19]} Rhd8 {[%emt 0:00:44]} 23. Rd1 {[%emt 0:01:17]} Rd5 {[%emt 0:01:37]} 24. Red2 {[%emt 0:00:16]} a6 {[%emt 0:01:34]} 25. Rd4 {[%emt 0:06:44]} Rad8 {[%emt 0:01:24]} 26. Kf1 {[%emt 0:01:04]} Rxd4 {[%emt 0:04:48]} 27. Rxd4 {[%emt 0:00:45]} Rxd4 {[%emt 0:00:30]} 28. cxd4 {[%emt 0:00:03]} Bb4 {[%emt 0:01:12]} 29. Ke2 {[%emt 0:09:37]} c3 {[%emt 0:06:37]} 30. bxc3 {[%emt 0:11:02]} Bxc3 {[%emt 0:00:07]} 31. Nd3 {[%emt 0:00:09]} a5 {[%emt 0:03:36]} 32. Nc5 {[%emt 0:03:22]} Bb4 {[%emt 0:02:32]} 33. Nb7 {[%emt 0:03:03]} Ke8 {[%emt 0:04:01]} 34. g3 {[%emt 0:01:38]} Ne7 {[%emt 0:07:40]} 35. Bd2 {[%emt 0:03:49]} Nd5 {[%emt 0:04:11]} 36. Nxa5 {[%emt 0:00:09]} Bxa5 {[%emt 0:00:22]} 37. Bxa5 {[%emt 0:00:02]} Kd7 {[%emt 0:01:20]} 38. Kd3 {[%emt 0:00:41]} g6 {[%emt 0:00:47]} 39. a4 {[%emt 0:03:33]} h6 {[%emt 0:06:09]} 40. Bd2 {[%emt 0:06:01]} Nc7 {[%emt 0:00:40]} 41. Bb4 {[%emt 0:07:39]} Na6 {[%emt 0:00:37]} 42. Bf8 {[%emt 0:00:12]} h5 {[%emt 0:00:17]} 43. Bd6 {[%emt 0:00:11]} Ke8 {[%emt 0:01:12]} 44. Ke3 {[%emt 0:01:36]} Kf7 {[%emt 0:00:51]} 45. Kf3 {[%emt 0:00:14]} Kg7 {[%emt 0:00:34]} 46. Kg2 {[%emt 0:00:17]} Kh6 {[%emt 0:00:20]} 47. Be7 {[%emt 0:00:46]} Nc7 {[%emt 0:06:46]} 48. Kh3 {[%emt 0:02:19]} Nd5 {[%emt 0:01:02]} 49. Bf8+ {[%emt 0:00:27]} Kh7 {[%emt 0:00:11]} 50. Bd6 {[%emt 0:02:02]} Kh6 {[%emt 0:05:00]} 51. Bf8+ {[%emt 0:04:00]} Kh7 {[%emt 0:00:02]} 52. Kh4 {[%emt 0:00:10]} Kg8 {[%emt 0:04:04]} 53. Bc5 {[%emt 0:01:01]} Kg7 {[%emt 0:01:06]} 54. Kg5 {[%emt 0:00:35]} 1-0

[Event "32nd GER-ch Seniors-50 2020"]
[Site "Magdeburg"]
[Date "2020.08.19"]
[Round "6.7"]
[White "Lindam, Ingo"]
[Black "Zuehlke, Burkhard"]
[Result "0-1"]
[ECO "A40"]
[WhiteElo "2142"]
[BlackElo "2005"]
[Annotator "ChessBase"]
[PlyCount "133"]
[EventDate "2020.08.14"]
[EventType "swiss"]
[EventCountry "GER"]
[SourceTitle "playchess.com"]
[Source "ChessBase"]
[SourceQuality "1"]
[TimeControl "40/5400+30:1800+30"]

1. d4 {[%emt 0:00:00]} g6 {[%emt 0:00:00]} 2. e4 {[%emt 0:00:00]} d6 {[%emt 0:00:00]} 3. Bc4 {[%emt 0:02:18]} Nf6 {[%emt 0:01:25]} 4. Qe2 {[%emt 0:01:11]} c6 {[%emt 0:26:16]} 5. Bb3 {[%emt 0:04:35]} Bg7 {[%emt 0:02:57]} 6. Nf3 {[%emt 0:02:48]} O-O {[%emt 0:03:01]} 7. h3 {[%emt 0:04:56]} e5 {[%emt 0:01:14]} 8. dxe5 {[%emt 0:05:09]} dxe5 {[%emt 0:03:41]} 9. Bd2 {[%emt 0:00:20]} Qe7 {[%emt 0:03:41]} 10. g4 {[%emt 0:09:05]} Na6 {[%emt 0:05:51]} 11. Bc3 {[%emt 0:03:02]} Nd7 {[%emt 0:00:27]} 12. Nbd2 {[%emt 0:03:06]} Ndc5 {[%emt 0:01:02]} 13. Nc4 {[%emt 0:02:33]} Nxb3 {[%emt 0:10:17]} 14. axb3 {[%emt 0:00:16]} f6 {[%emt 0:00:13]} 15. Rd1 {[%emt 0:11:15]} Nc7 {[%emt 0:05:29]} 16. Nd6 {[%emt 0:06:26]} Ne6 {[%emt 0:00:28]} 17. Nxc8 {[%emt 0:00:21]} Rfxc8 {[%emt 0:01:15]} 18. O-O {[%emt 0:02:52]} b5 {[%emt 0:04:49]} 19. Rfe1 {[%emt 0:13:45]} Nf4 {[%emt 0:05:00]} 20. Qf1 {[%emt 0:02:00]} Rd8 {[%emt 0:02:20]} 21. Kh2 {[%emt 0:00:55]} Ne6 {[%emt 0:01:19]} 22. Ba5 {[%emt 0:01:22]} Rxd1 {[%emt 0:01:42]} 23. Rxd1 {[%emt 0:00:01]} Bf8 {[%emt 0:04:31]} 24. b4 {[%emt 0:06:24]} Re8 {[%emt 0:03:00]} 25. Qd3 {[%emt 0:01:18]} Qb7 {[%emt 0:05:38]} 26. c4 {[%emt 0:04:40]} Nf4 {[%emt 0:01:56]} 27. Qc2 {[%emt 0:05:52]} c5 {[%emt 0:01:22]} 28. bxc5 {[%emt 0:01:19]} b4 {[%emt 0:01:06]} 29. Rd8 {[%emt 0:03:54]} Rxd8 {[%emt 0:00:20]} 30. Bxd8 {[%emt 0:00:01]} Kf7 {[%emt 0:00:18]} 31. g5 {[%emt 0:01:00]} Qd7 {[%emt 0:00:42]} 32. Kg1 {[%emt 0:01:24]} Qxd8 {[%emt 0:00:17]} 33. Qa4 {[%emt 0:00:24]} Bxc5 {[%emt 0:00:30]} 34. Qc6 {[%emt 0:00:18]} Qd6 {[%emt 0:01:01]} 35. Qb7+ {[%emt 0:00:38]} Qe7 {[%emt 0:00:17]} 36. Qc8 {[%emt 0:00:11]} Kg7 {[%emt 0:02:39]} 37. gxf6+ {[%emt 0:00:12]} Kxf6 {[%emt 0:01:37]} 38. Qh8+ {[%emt 0:00:29]} Qg7 {[%emt 0:00:01]} 39. Qd8+ {[%emt 0:02:22]} Qe7 {[%emt 0:00:51]} 40. Qh8+ {[%emt 0:00:24]} Qg7 {[%emt 0:00:15]} 41. Qd8+ {[%emt 0:30:05]} Be7 {[%emt 0:04:27]} 42. Qc7 {[%emt 0:00:00]} g5 {[%emt 0:13:08]} 43. Nxe5 {[%emt 0:00:00]} h5 {[%emt 0:03:18]} 44. Nc6 {[%emt 0:00:00]} Ng6 {[%emt 0:02:40]} 45. Qxa7 {[%emt 0:00:00]} Bd6 {[%emt 0:01:11]} 46. Qd4+ {[%emt 0:00:00]} Be5 {[%emt 0:02:08]} 47. Qd8+ {[%emt 0:00:00]} Kf7 {[%emt 0:00:05]} 48. Qd5+ {[%emt 0:00:00]} Kf8 {[%emt 0:00:22]} 49. Qd8+ {[%emt 0:00:00]} Kf7 {[%emt 0:00:07]} 50. Qd5+ {[%emt 0:00:00]} Kf6 {[%emt 0:00:26]} 51. Qd8+ {[%emt 0:00:00]} Ne7 {[%emt 0:00:02]} 52. Nxb4 {[%emt 0:01:01]} g4 {[%emt 0:01:18]} 53. Nd5+ {[%emt 0:00:54]} Ke6 {[%emt 0:00:59]} 54. Qxe7+ {[%emt 0:02:51]} Qxe7 {[%emt 0:00:03]} 55. Nxe7 {[%emt 0:00:05]} Kxe7 {[%emt 0:00:08]} 56. b4 {[%emt 0:00:19]} Kd6 {[%emt 0:00:28]} 57. Kg2 {[%emt 0:00:13]} Kc6 {[%emt 0:00:52]} 58. Kf1 {[%emt 0:02:34]} Bc7 {[%emt 0:01:06]} 59. Kg2 {[%emt 0:00:09]} Kd7 {[%emt 0:00:07]} 60. Kf1 {[%emt 0:01:55]} Bf4 {[%emt 0:02:57]} 61. Kg2 {[%emt 0:00:09]} Kd6 {[%emt 0:00:15]} 62. hxg4 {[%emt 0:00:57]} hxg4 {[%emt 0:00:13]} 63. f3 {[%emt 0:00:41]} g3 {[%emt 0:00:07]} 64. Kh3 {[%emt 0:00:27]} Ke5 {[%emt 0:00:19]} 65. c5 {[%emt 0:00:19]} Kd4 {[%emt 0:00:30]} 66. c6 {[%emt 0:00:36]} Kc4 {[%emt 0:00:11]} 67. Kg4 {[%emt 0:00:38]} 0-1

[Event "32nd GER-ch Seniors-50 2020"]
[Site "Magdeburg"]
[Date "2020.08.20"]
[Round "7.2"]
[White "Pirrot, Dieter"]
[Black "Vatter, Hans-Joachim"]
[Result "1/2-1/2"]
[ECO "C50"]
[WhiteElo "2319"]
[BlackElo "2204"]
[Annotator "ChessBase"]
[PlyCount "142"]
[EventDate "2020.08.14"]
[EventType "swiss"]
[EventCountry "GER"]
[SourceTitle "playchess.com"]
[Source "ChessBase"]
[SourceQuality "1"]
[TimeControl "40/5400+30:1800+30"]

1. e4 {[%emt 0:00:00]} e5 {[%emt 0:00:00]} 2. Nf3 {[%emt 0:00:00]} Nc6 {[%emt 0:00:00]} 3. Bc4 {[%emt 0:00:17]} Bc5 {[%emt 0:00:01]} 4. O-O {[%emt 0:00:19]} Nf6 {[%emt 0:01:57]} 5. d4 {[%emt 0:00:09]} Bxd4 {[%emt 0:01:47]} 6. Nxd4 {[%emt 0:00:11]} Nxd4 {[%emt 0:01:37]} 7. f4 {[%emt 0:03:13]} d6 {[%emt 0:00:11]} 8. c3 {[%emt 0:00:11]} Ne6 {[%emt 0:02:30]} 9. f5 {[%emt 0:02:42]} Nc5 {[%emt 0:02:11]} 10. Nd2 {[%emt 0:00:40]} c6 {[%emt 0:04:16]} 11. Qf3 {[%emt 0:14:01]} a5 {[%emt 0:20:12]} 12. b4 {[%emt 0:09:47]} axb4 {[%emt 0:00:35]} 13. cxb4 {[%emt 0:00:09]} Na4 {[%emt 0:02:45]} 14. Kh1 {[%emt 0:02:47]} b5 {[%emt 0:02:00]} 15. Bd3 {[%emt 0:11:02]} Qe7 {[%emt 0:12:28]} 16. Nb3 {[%emt 0:04:48]} h6 {[%emt 0:01:16]} 17. a3 {[%emt 0:11:01]} Bd7 {[%emt 0:04:49]} 18. Qg3 {[%emt 0:12:31]} c5 {[%emt 0:05:05]} 19. Na5 {[%emt 0:01:02]} Kf8 {[%emt 0:02:01]} 20. Bc2 {[%emt 0:01:09]} Kg8 {[%emt 0:00:40]} 21. Qh4 {[%emt 0:09:01]} Rc8 {[%emt 0:02:37]} 22. Bxa4 {[%emt 0:02:46]} bxa4 {[%emt 0:00:06]} 23. Bd2 {[%emt 0:03:14]} Rc7 {[%emt 0:04:24]} 24. Rae1 {[%emt 0:01:24]} Bb5 {[%emt 0:02:14]} 25. Rf3 {[%emt 0:00:15]} c4 {[%emt 0:02:19]} 26. Bc3 {[%emt 0:01:03]} Kh7 {[%emt 0:04:18]} 27. g4 {[%emt 0:01:38]} Kg8 {[%emt 0:02:37]} 28. Qg3 {[%emt 0:00:55]} Kf8 {[%emt 0:00:31]} 29. h3 {[%emt 0:00:21]} Ke8 {[%emt 0:01:09]} 30. Qf2 {[%emt 0:01:23]} Nd7 {[%emt 0:01:57]} 31. Rd1 {[%emt 0:02:08]} h5 {[%emt 0:00:29]} 32. g5 {[%emt 0:00:24]} Qxg5 {[%emt 0:00:07]} 33. Rxd6 {[%emt 0:00:27]} Rh6 {[%emt 0:00:07]} 34. Rd5 {[%emt 0:00:34]} Bc6 {[%emt 0:01:08]} 35. Nxc6 {[%emt 0:00:39]} Rhxc6 {[%emt 0:00:19]} 36. b5 {[%emt 0:01:56]} Rc5 {[%emt 0:07:18]} 37. b6 {[%emt 0:00:28]} R7c6 {[%emt 0:00:53]} 38. b7 {[%emt 0:01:14]} Qd8 {[%emt 0:03:36]} 39. Bxe5 {[%emt 0:02:12]} Rxd5 {[%emt 0:02:12]} 40. exd5 {[%emt 0:00:12]} Rb6 {[%emt 0:00:08]} 41. Bxg7 {[%emt 0:06:21]} Rb1+ {[%emt 0:06:46]} 42. Kg2 {[%emt 0:01:00]} Qg5+ {[%emt 0:00:47]} 43. Rg3 {[%emt 0:03:54]} Qc1 {[%emt 0:00:20]} 44. Re3+ {[%emt 0:13:03]} Kd8 {[%emt 0:00:21]} 45. b8=Q+ {[%emt 0:00:24]} Rxb8 {[%emt 0:01:42]} 46. d6 {[%emt 0:06:47]} f6 {[%emt 0:03:56]} 47. Qe2 {[%emt 0:01:29]} Kc8 {[%emt 0:05:15]} 48. Re8+ {[%emt 0:00:08]} Kb7 {[%emt 0:00:05]} 49. Qe4+ {[%emt 0:00:08]} Ka7 {[%emt 0:02:10]} 50. Qd4+ {[%emt 0:00:15]} Ka6 {[%emt 0:01:24]} 51. Rxb8 {[%emt 0:00:24]} Nxb8 {[%emt 0:01:19]} 52. Bxf6 {[%emt 0:01:13]} Qc2+ {[%emt 0:00:17]} 53. Kg3 {[%emt 0:00:20]} Qxf5 {[%emt 0:01:51]} 54. Qxc4+ {[%emt 0:00:09]} Kb7 {[%emt 0:00:18]} 55. Qb4+ {[%emt 0:00:53]} Kc8 {[%emt 0:00:15]} 56. Qc3+ {[%emt 0:00:23]} Kb7 {[%emt 0:00:13]} 57. Qf3+ {[%emt 0:00:29]} Qxf3+ {[%emt 0:00:19]} 58. Kxf3 {[%emt 0:00:05]} Kc6 {[%emt 0:00:11]} 59. Be7 {[%emt 0:00:11]} Kd7 {[%emt 0:03:27]} 60. Kg3 {[%emt 0:00:08]} Nc6 {[%emt 0:00:22]} 61. Bf8 {[%emt 0:00:55]} Ne5 {[%emt 0:00:44]} 62. Be7 {[%emt 0:00:33]} Nc4 {[%emt 0:02:44]} 63. Kh4 {[%emt 0:00:12]} Nxa3 {[%emt 0:00:02]} 64. Kxh5 {[%emt 0:00:16]} Nc4 {[%emt 0:00:08]} 65. Kg6 {[%emt 0:00:35]} Nxd6 {[%emt 0:00:43]} 66. Bf6 {[%emt 0:00:12]} a3 {[%emt 0:03:58]} 67. h4 {[%emt 0:00:17]} Ke6 {[%emt 0:00:13]} 68. h5 {[%emt 0:00:28]} Nf7 {[%emt 0:00:32]} 69. Bc3 {[%emt 0:01:20]} a2 {[%emt 0:00:09]} 70. Bb2 {[%emt 0:00:19]} Ne5+ {[%emt 0:00:28]} 71. Kg7 {[%emt 0:00:20]} Ng4 {[%emt 0:00:06]} 1/2-1/2

[Event "32nd GER-ch Seniors-50 2020"]
[Site "Magdeburg"]
[Date "2020.08.20"]
[Round "7.3"]
[White "Pitschka, Claus"]
[Black "Biebinger, Gerhard"]
[Result "0-1"]
[ECO "C06"]
[WhiteElo "2158"]
[BlackElo "2226"]
[Annotator "ChessBase"]
[PlyCount "123"]
[EventDate "2020.08.14"]
[EventType "swiss"]
[EventCountry "GER"]
[SourceTitle "playchess.com"]
[Source "ChessBase"]
[SourceQuality "1"]
[TimeControl "40/5400+30:1800+30"]

1. d4 {[%emt 0:00:00]} e6 {[%emt 0:00:00]} 2. e4 {[%emt 0:01:10]} d5 {[%emt 0:00:00]} 3. Nd2 {[%emt 0:00:05]} Nf6 {[%emt 0:00:03]} 4. e5 {[%emt 0:00:07]} Nfd7 {[%emt 0:00:07]} 5. Bd3 {[%emt 0:00:19]} c5 {[%emt 0:01:57]} 6. c3 {[%emt 0:00:20]} cxd4 {[%emt 0:00:29]} 7. cxd4 {[%emt 0:00:16]} Nc6 {[%emt 0:00:04]} 8. Ne2 {[%emt 0:02:17]} Nb6 {[%emt 0:00:07]} 9. O-O {[%emt 0:02:34]} Bd7 {[%emt 0:02:09]} 10. f4 {[%emt 0:01:21]} Nb4 {[%emt 0:10:22]} 11. Bb1 {[%emt 0:05:21]} Nc4 {[%emt 0:00:09]} 12. Nf3 {[%emt 0:05:02]} h5 {[%emt 0:05:06]} 13. a3 {[%emt 0:02:48]} Nc6 {[%emt 0:00:08]} 14. Nc3 {[%emt 0:23:43]} g6 {[%emt 0:03:40]} 15. b3 {[%emt 0:07:22]} N4a5 {[%emt 0:02:16]} 16. Be3 {[%emt 0:04:55]} Qb6 {[%emt 0:07:36]} 17. Bc2 {[%emt 0:00:24]} Ne7 {[%emt 0:01:05]} 18. b4 {[%emt 0:07:00]} Nc4 {[%emt 0:00:36]} 19. Bf2 {[%emt 0:00:03]} Nf5 {[%emt 0:01:11]} 20. Re1 {[%emt 0:01:16]} Be7 {[%emt 0:02:05]} 21. Na4 {[%emt 0:00:59]} Bxa4 {[%emt 0:15:11]} 22. Bxa4+ {[%emt 0:00:10]} Kf8 {[%emt 0:00:19]} 23. Bc2 {[%emt 0:01:05]} Qd8 {[%emt 0:00:33]} 24. Nd2 {[%emt 0:02:12]} b5 {[%emt 0:07:45]} 25. Nb3 {[%emt 0:01:48]} a5 {[%emt 0:01:17]} 26. Nc5 {[%emt 0:00:18]} a4 {[%emt 0:02:44]} 27. Re2 {[%emt 0:06:05]} Qc7 {[%emt 0:00:57]} 28. Qe1 {[%emt 0:00:54]} Kg7 {[%emt 0:04:36]} 29. Bxf5 {[%emt 0:03:09]} gxf5 {[%emt 0:00:16]} 30. Bh4 {[%emt 0:00:07]} Rag8 {[%emt 0:02:05]} 31. Rc1 {[%emt 0:06:37]} Qd8 {[%emt 0:02:25]} 32. Bxe7 {[%emt 0:01:52]} Qxe7 {[%emt 0:00:03]} 33. Rc3 {[%emt 0:00:43]} h4 {[%emt 0:01:21]} 34. Nd3 {[%emt 0:03:51]} Kf8 {[%emt 0:00:29]} 35. Nf2 {[%emt 0:00:11]} Rh5 {[%emt 0:04:07]} 36. Nh3 {[%emt 0:00:14]} Ke8 {[%emt 0:01:05]} 37. Ng5 {[%emt 0:01:25]} Rhxg5 {[%emt 0:00:54]} 38. fxg5 {[%emt 0:00:21]} Qxg5 {[%emt 0:00:10]} 39. Rh3 {[%emt 0:01:23]} Rh8 {[%emt 0:01:38]} 40. Rc2 {[%emt 0:02:39]} Qg4 {[%emt 0:00:45]} 41. Rd3 {[%emt 0:33:20]} Kd7 {[%emt 0:32:03]} 42. Qe2 {[%emt 0:01:49]} Qe4 {[%emt 0:00:28]} 43. Qxe4 {[%emt 0:00:00]} dxe4 {[%emt 0:00:00]} 44. Rh3 {[%emt 0:00:00]} Kc6 {[%emt 0:00:00]} 45. g3 {[%emt 0:00:00]} Kd5 {[%emt 0:00:00]} 46. Rxh4 {[%emt 0:00:00]} Rf8 {[%emt 0:00:00]} 47. Rf2 {[%emt 0:00:00]} Kxd4 {[%emt 0:00:00]} 48. g4 {[%emt 0:00:00]} Rg8 {[%emt 0:00:00]} 49. Kh1 {[%emt 0:00:00]} Kxe5 {[%emt 0:10:20]} 50. gxf5 {[%emt 0:00:00]} exf5 {[%emt 0:00:08]} 51. Rh5 {[%emt 0:00:00]} Ne3 {[%emt 0:01:55]} 52. h3 {[%emt 0:00:00]} Rc8 {[%emt 0:01:07]} 53. Rh7 {[%emt 0:00:00]} Ke6 {[%emt 0:01:41]} 54. Rh6+ {[%emt 0:00:00]} f6 {[%emt 0:00:47]} 55. Rh7 {[%emt 0:00:00]} Nc4 {[%emt 0:01:00]} 56. Rc2 {[%emt 0:02:43]} Rb8 {[%emt 0:01:10]} 57. Rc3 {[%emt 0:01:49]} f4 {[%emt 0:00:21]} 58. Rc7 {[%emt 0:02:29]} Ke5 {[%emt 0:00:45]} 59. Rd7 {[%emt 0:01:13]} f3 {[%emt 0:00:25]} 60. Kg1 {[%emt 0:00:59]} f5 {[%emt 0:00:24]} 61. Kf2 {[%emt 0:01:10]} Rh8 62. Rd6 0-1